bitfinex-derivatives/quotes_BTCF0:USTF0_20241214
["timestamp","ask_amount","ask_price","bid_price","bid_amount"]
[1734140618290,0.1915,102190.0,102170.0,0.048928]
[1734140618484,0.00895059,102180.0,102170.0,0.048928]
[1734140618797,0.5523,102190.0,102170.0,0.409728]
[1734140619084,0.00895014,102180.0,102170.0,0.409728]
[1734140619277,0.5523,102190.0,102170.0,0.409728]
[1734140619482,0.50787525,102180.0,102160.0,0.3608]
[1734140619678,0.048941,102150.0,102140.0,0.3608]
[1734140619885,0.86975603,102170.0,102140.0,0.3608]
[1734140619886,0.409737,102160.0,102140.0,0.3608]
[1734140620180,0.603737,102160.0,102140.0,0.3608]
[1734140620387,0.54787167,102150.0,102130.0,0.048949]
[1734140620587,0.609541,102150.0,102130.0,0.048949]
[1734140621290,0.248741,102150.0,102130.0,0.048949]
[1734140622900,0.00872001,102140.0,102130.0,0.048949]
[1734140623087,0.609541,102150.0,102130.0,0.048949]
[1734140623281,0.00867656,102140.0,102130.0,0.048949]
[1734140623486,0.609541,102150.0,102130.0,0.048949]
[1734140623686,0.00918055,102140.0,102130.0,0.048949]
[1734140623888,0.0005,102140.0,102130.0,0.048949]
[1734140624383,0.3613,102140.0,102130.0,0.048949]
[1734140624788,0.3608,102140.0,102130.0,0.048949]
[1734140625090,0.609541,102150.0,102130.0,0.048949]
[1734140625287,0.00866306,102140.0,102130.0,0.048949]
[1734140625488,0.609541,102150.0,102130.0,0.048949]
[1734140625684,0.00866291,102140.0,102130.0,0.048949]
[1734140625988,0.610041,102150.0,102130.0,0.048949]
[1734140626188,0.0086758,102140.0,102130.0,0.048949]
[1734140626392,0.610041,102150.0,102130.0,0.048949]
[1734140626587,0.00867645,102140.0,102130.0,0.048949]
[1734140626909,0.609541,102150.0,102130.0,0.048949]
[1734140627099,0.0086785,102140.0,102130.0,0.048949]
[1734140627298,0.609541,102150.0,102130.0,0.048949]
[1734140627595,0.0576275,102140.0,102120.0,0.43731004]
[1734140627790,0.409748,102140.0,102120.0,0.43731004]
[1734140628392,0.00868837,102130.0,102120.0,0.43731004]
[1734140628597,0.409748,102140.0,102120.0,0.43731004]
[1734140628900,0.00868839,102130.0,102120.0,0.43731004]
[1734140629096,0.409748,102140.0,102120.0,0.43731004]
[1734140630591,0.048948,102140.0,102120.0,0.43731004]
[1734140631406,0.048948,102140.0,102120.0,0.52933046]
[1734140632199,0.49674187,102140.0,102120.0,0.52933046]
[1734140632391,0.54569087,102140.0,102120.0,0.52933046]
[1734140632596,0.49674187,102140.0,102120.0,0.52933046]
[1734140633407,0.54569087,102140.0,102120.0,0.52933046]
[1734140634095,0.54569087,102140.0,102120.0,0.16853046]
[1734140634397,0.54569087,102140.0,102120.0,0.52933046]
[1734140634800,0.49674187,102140.0,102120.0,0.52933046]
[1734140635008,0.13594187,102140.0,102130.0,0.048951]
[1734140635400,0.18489087,102140.0,102120.0,0.43731004]
[1734140635712,0.13594187,102140.0,102120.0,0.43731004]
[1734140636003,0.13594187,102140.0,102120.0,0.52933046]
[1734140638613,0.25193369,102140.0,102120.0,0.52933046]
[1734140640106,0.30088269,102140.0,102120.0,0.52933046]
[1734140640308,0.08699387,102130.0,102120.0,0.52933046]
[1734140640706,0.58876529,102130.0,102120.0,0.00789514]
[1734140641005,0.58876529,102130.0,102120.0,0.45282042]
[1734140641006,0.11599182,102130.0,102120.0,0.45282042]
[1734140641207,0.16493782,102140.0,102120.0,0.50177642]
[1734140641413,0.25274787,102140.0,102130.0,0.3608]
[1734140644696,0.25274787,102140.0,102130.0,0.17272663]
[1734140644901,0.25274787,102140.0,102130.0,0.53352663]
[1734140645309,0.13675605,102140.0,102130.0,0.53352663]
[1734140645508,0.25274787,102140.0,102130.0,0.53352663]
[1734140646511,0.13675605,102140.0,102130.0,0.53352663]
[1734140648308,0.25274787,102140.0,102130.0,0.58868711]
[1734140648911,0.25274787,102140.0,102130.0,0.22788711]
[1734140649112,0.25274787,102140.0,102130.0,0.40084664]
[1734140649305,0.25274787,102140.0,102130.0,0.22788711]
[1734140649707,0.52573782,102140.0,102130.0,0.22788711]
[1734140650107,0.52573782,102140.0,102130.0,0.17297823]
[1734140650305,0.16493782,102140.0,102120.0,1.15899184]
[1734140650512,0.16493782,102140.0,102130.0,0.22788711]
[1734140651423,0.25296328,102140.0,102130.0,0.51274599]
[1734140652127,0.25296328,102140.0,102130.0,0.22788711]
[1734140652315,0.25296328,102140.0,102130.0,0.51274599]
[1734140653418,0.25296328,102140.0,102130.0,0.74093171]
[1734140653716,0.9848102,102150.0,102130.0,1.2998956]
[1734140653717,0.2960377,102150.0,102130.0,1.2998956]
[1734140654017,0.09202042,102140.0,102130.0,0.74378807]
[1734140654218,0.5407837,102140.0,102130.0,0.74378807]
[1734140654424,0.44876328,102140.0,102130.0,0.74378807]
[1734140654724,0.44876328,102140.0,102130.0,0.51560235]
[1734140655215,0.9015837,102140.0,102130.0,0.74378807]
[1734140655407,0.81355824,102140.0,102130.0,0.22818572]
[1734140655813,0.81355824,102140.0,102120.0,0.6533958]
[1734140655814,0.048951,102130.0,102120.0,0.6533958]
[1734140656024,0.13698497,102130.0,102120.0,0.88172643]
[1734140656325,0.13698497,102130.0,102120.0,0.59687117]
[1734140657418,0.13698497,102130.0,102120.0,0.93870183]
[1734140657919,0.13698497,102130.0,102120.0,0.59687117]
[1734140658314,0.048951,102130.0,102120.0,0.93870183]
[1734140659115,0.22900539,102130.0,102120.0,0.57790183]
[1734140659317,0.22900539,102130.0,102120.0,0.57270585]
[1734140659318,0.95156539,102130.0,102120.0,0.57270585]
[1734140659526,0.97952324,102130.0,102120.0,0.69262429]
[1734140660017,1.3085212,102130.0,102120.0,0.40406388]
[1734140660213,1.42583894,102130.0,102120.0,0.23087519]
[1734140660416,0.048956,102120.0,102110.0,0.33184275]
[1734140660619,0.96369684,102120.0,102110.0,0.10106388]
[1734140660820,0.048961,102110.0,102100.0,0.63039107]
[1734140661022,0.58977449,102110.0,102100.0,0.28856041]
[1734140661223,0.048965,102100.0,102090.0,0.53732355]
[1734140661526,0.409765,102100.0,102090.0,0.24876314]
[1734140661713,0.048965,102100.0,102090.0,0.24876314]
[1734140661916,0.409765,102100.0,102090.0,0.24876314]
[1734140663124,0.09202042,102110.0,102090.0,0.70158356]
[1734140663125,0.048962,102110.0,102090.0,0.70158356]
[1734140663333,0.61506715,102120.0,102100.0,0.048964]
[1734140663521,0.61506715,102120.0,102100.0,0.421364]
[1734140663522,0.00883571,102110.0,102100.0,0.421364]
[1734140663730,0.50177742,102120.0,102100.0,0.421364]
[1734140663919,0.00883551,102110.0,102100.0,0.782164]
[1734140664121,0.50177742,102120.0,102100.0,0.421364]
[1734140664427,0.00883565,102110.0,102100.0,0.421364]
[1734140664615,0.18993642,102120.0,102100.0,0.782164]
[1734140664815,0.00884398,102110.0,102100.0,0.782164]
[1734140665014,0.14097742,102120.0,102100.0,0.782164]
[1734140665314,0.00884407,102110.0,102100.0,0.421364]
[1734140665519,0.50177742,102120.0,102100.0,0.421364]
[1734140665728,0.00883765,102110.0,102100.0,0.421364]
[1734140665928,0.81055307,102130.0,102100.0,0.87418442]
[1734140665929,0.49774607,102130.0,102100.0,0.87418442]
[1734140666123,0.00883689,102120.0,102110.0,0.409761]
[1734140666325,0.50177342,102130.0,102110.0,0.69832141]
[1734140666627,0.14097342,102130.0,102120.0,0.5508]
[1734140669023,0.14097342,102130.0,102120.0,0.19]
[1734140670127,0.048956,102120.0,102110.0,0.3608]
[1734140670427,0.14097642,102120.0,102110.0,0.3608]
[1734140670634,0.048961,102110.0,102100.0,0.63039107]
[1734140670929,0.14098142,102110.0,102100.0,0.28856041]
[1734140671130,0.14098142,102110.0,102090.0,0.6774577]
[1734140671131,0.048965,102100.0,102090.0,0.6774577]
[1734140671530,0.048965,102100.0,102090.0,0.89681312]
[1734140671728,0.14098542,102100.0,102090.0,0.18879729]
[1734140672540,0.50178542,102100.0,102090.0,9.729e-05]
[1734140674232,0.048965,102100.0,102090.0,9.729e-05]
[1734140674427,0.14098542,102100.0,102090.0,0.36089729]
[1734140674937,0.14098542,102100.0,102090.0,0.40986729]
[1734140675430,0.048965,102100.0,102090.0,0.40986729]
[1734140675646,0.048965,102100.0,102090.0,0.36089729]
[1734140676327,0.410803,102110.0,102090.0,0.40986629]
[1734140676526,0.410803,102110.0,102100.0,0.5565]
[1734140677035,0.410803,102110.0,102100.0,0.1957]
[1734140677036,0.50282342,102110.0,102100.0,0.1957]
[1734140677333,0.50282342,102110.0,102100.0,0.5565]
[1734140680430,0.50282342,102110.0,102100.0,0.1957]
[1734140680431,0.86362342,102110.0,102100.0,0.1957]
[1734140680933,0.86362342,102110.0,102090.0,0.36089729]
[1734140681240,0.14982735,102100.0,102090.0,0.36089729]
[1734140681446,0.14098542,102100.0,102090.0,0.36089729]
[1734140681832,0.50178542,102100.0,102090.0,9.729e-05]
[1734140684531,1.10178542,102100.0,102090.0,9.729e-05]
[1734140686438,1.18977849,102100.0,102090.0,9.729e-05]
[1734140688242,1.19808661,102100.0,102090.0,9.729e-05]
[1734140688448,0.048965,102100.0,102090.0,0.04906729]
[1734140690644,0.14098542,102100.0,102090.0,9.729e-05]
[1734140692462,0.50178542,102100.0,102090.0,9.729e-05]
[1734140693745,1.07828542,102100.0,102090.0,9.729e-05]
[1734140696246,1.16627849,102100.0,102090.0,9.729e-05]
[1734140700361,0.048975,102080.0,102070.0,0.71076092]
[1734140700564,0.409775,102080.0,102070.0,0.51211139]
[1734140700751,0.409775,102080.0,102060.0,0.94451366]
[1734140700752,0.50179542,102080.0,102060.0,1.18410438]
[1734140700963,0.05764306,102070.0,102060.0,1.11714373]
[1734140701153,0.04898,102070.0,102060.0,0.75634373]
[1734140701463,0.14100042,102070.0,102060.0,0.75634373]
[1734140702062,0.14100042,102070.0,102060.0,0.70735973]
[1734140702957,0.50180042,102070.0,102060.0,0.70735973]
[1734140703165,0.50180042,102070.0,102060.0,0.1929]
[1734140703564,0.50180042,102070.0,102060.0,0.2012906]
[1734140703767,0.50180042,102070.0,102060.0,0.1929]
[1734140704769,0.048985,102060.0,102050.0,0.3728]
[1734140704958,0.14110271,102060.0,102050.0,0.3728]
[1734140705153,0.50190271,102060.0,102050.0,0.3728]
[1734140705368,0.14110271,102060.0,102050.0,0.3728]
[1734140705761,0.50190271,102060.0,102050.0,0.1891]
[1734140705953,0.50190271,102060.0,102040.0,0.49093318]
[1734140706160,0.14101042,102050.0,102040.0,0.49093318]
[1734140706358,0.50181042,102050.0,102040.0,0.48279826]
[1734140706563,0.14101042,102050.0,102040.0,0.19422454]
[1734140707070,0.50181042,102050.0,102040.0,0.19422454]
[1734140707864,0.50181042,102050.0,102040.0,0.19372454]
[1734140708269,0.50181042,102050.0,102040.0,0.00012454]
[1734140708661,0.58980349,102050.0,102040.0,0.00012454]
[1734140709674,0.58980349,102050.0,102040.0,5.4e-07]
[1734140710362,0.5979048,102050.0,102040.0,5.4e-07]
[1734140712271,0.50991173,102050.0,102040.0,5.4e-07]
[1734140713668,0.41789131,102050.0,102040.0,5.4e-07]
[1734140713876,0.14101042,102050.0,102040.0,0.40979654]
[1734140714078,0.14101042,102050.0,102040.0,0.79049654]
[1734140714771,0.14101042,102050.0,102040.0,0.74150054]
[1734140715676,0.04908529,102060.0,102050.0,0.048992]
[1734140715879,0.14110571,102060.0,102050.0,0.5497]
[1734140717175,0.410904,102070.0,102050.0,0.598691]
[1734140717581,0.50292442,102070.0,102050.0,0.598691]
[1734140717877,0.048979,102080.0,102060.0,0.50180542]
[1734140718177,0.14099942,102080.0,102070.0,0.7399]
[1734140718364,0.14107482,102080.0,102070.0,0.7399]
[1734140719875,0.14107482,102080.0,102070.0,0.3791]
[1734140721583,0.14107482,102080.0,102070.0,0.1899]
[1734140721967,0.50187482,102080.0,102070.0,0.1899]
[1734140722174,0.14107482,102080.0,102070.0,0.1899]
[1734140723878,0.50187482,102080.0,102070.0,0.1899]
[1734140724277,0.14107482,102080.0,102070.0,0.1899]
[1734140724489,0.50187482,102080.0,102070.0,0.1899]
[1734140727973,0.0490544,102080.0,102070.0,0.5507]
[1734140728381,0.0490544,102080.0,102070.0,0.599679]
[1734140728678,7.54e-05,102080.0,102070.0,0.83011437]
[1734140729778,0.0490494,102080.0,102070.0,0.83011437]
[1734140730476,0.0490494,102080.0,102070.0,0.64021437]
[1734140730677,0.14106982,102080.0,102060.0,0.95690713]
[1734140730881,0.14106982,102080.0,102060.0,1.1823348]
[1734140731078,0.0490494,102080.0,102070.0,0.3608]
[1734140731780,0.0490494,102080.0,102060.0,0.95690713]
[1734140731987,0.0490494,102080.0,102060.0,1.16279894]
[1734140732294,0.048979,102070.0,102060.0,1.16279894]
[1734140732485,0.048979,102070.0,102060.0,0.93732523]
[1734140733180,0.048979,102070.0,102060.0,0.64875151]
[1734140733379,0.048979,102070.0,102060.0,0.59976851]
[1734140733686,0.14099942,102070.0,102060.0,0.23896851]
[1734140733884,0.14099942,102070.0,102060.0,0.00853314]
[1734140734084,0.14099942,102070.0,102050.0,1.50329709]
[1734140734592,0.14099942,102070.0,102050.0,1.73043646]
[1734140735094,0.14099942,102070.0,102060.0,0.23043537]
[1734140735387,0.048979,102070.0,102060.0,0.24983898]
[1734140735575,0.048979,102070.0,102060.0,0.61063898]
[1734140735778,0.048979,102070.0,102060.0,0.24983898]
[1734140736285,0.048979,102070.0,102060.0,0.65962298]
[1734140740385,0.048979,102070.0,102060.0,0.9481967]
[1734140740589,7.54e-05,102080.0,102070.0,0.048979]
[1734140740896,0.09209582,102080.0,102070.0,0.409779]
[1734140741089,0.14106982,102080.0,102070.0,0.52025649]
[1734140741286,0.14106982,102080.0,102070.0,0.74520451]
[1734140741485,0.14106982,102080.0,102070.0,0.45663079]
[1734140741686,0.50186982,102080.0,102070.0,0.23181021]
[1734140742289,0.45289582,102080.0,102060.0,0.53978754]
[1734140742494,0.4098494,102080.0,102070.0,0.23181021]
[1734140743686,0.50186982,102080.0,102070.0,0.23181021]
[1734140744284,0.58986289,102080.0,102070.0,0.52038393]
[1734140744596,0.58986289,102080.0,102070.0,0.23181021]
[1734140744798,0.77526289,102080.0,102070.0,0.23181021]
[1734140745286,0.89257997,102080.0,102070.0,0.23181021]
[1734140745685,1.1045869,102080.0,102070.0,0.23181021]
[1734140745986,1.24957668,102080.0,102060.0,0.74770425]
[1734140746188,1.10715099,102070.0,102060.0,0.4599268]
[1734140746381,1.10715099,102070.0,102060.0,0.23181021]
[1734140747491,0.048984,102060.0,102050.0,0.75826993]
[1734140747682,0.14100442,102060.0,102050.0,0.93834696]
[1734140748291,0.59382484,102060.0,102050.0,0.52110398]
[1734140748501,1.04385933,102060.0,102050.0,0.52110398]
[1734140748791,0.048989,102050.0,102040.0,0.86293518]
[1734140748990,0.99330541,102050.0,102040.0,0.35035942]
[1734140749189,0.048994,102040.0,102030.0,0.28857372]
[1734140749389,1.10455192,102040.0,102030.0,0.28857372]
[1734140749690,1.10455192,102040.0,102010.0,0.23253026]
[1734140749691,0.049003,102020.0,102010.0,0.23253026]
[1734140749891,1.31254786,102020.0,102000.0,0.33253026]
[1734140750195,0.50189985,102010.0,102000.0,0.1]
[1734140750594,0.59392027,102010.0,102000.0,0.1]
[1734140750892,0.88254471,102010.0,102000.0,0.1]
[1734140751084,0.79052429,102010.0,102000.0,0.1]
[1734140751294,0.70259985,102010.0,102000.0,0.1]
[1734140752496,0.79462027,102010.0,102000.0,0.1]
[1734140753798,0.70259985,102010.0,102000.0,0.1]
[1734140753997,0.71731985,102010.0,102000.0,0.1]
[1734140754302,0.72589713,102010.0,102000.0,0.1]
[1734140755194,0.51047713,102010.0,102000.0,0.1]
[1734140756106,0.51047713,102010.0,102000.0,0.149013]
[1734140756107,0.40987943,102010.0,102000.0,0.149013]
[1734140756297,0.14109985,102010.0,102000.0,0.4608]
[1734140756496,0.14109985,102010.0,102000.0,0.1]
[1734140756904,0.14109985,102010.0,102000.0,0.1005]
[1734140757299,0.04907943,102010.0,102000.0,0.4613]
[1734140757500,0.04907943,102010.0,102000.0,0.510313]
[1734140757900,0.04907943,102010.0,102000.0,0.4608]
[1734140758902,0.04907943,102010.0,102000.0,0.4613]
[1734140759104,0.04907943,102010.0,102000.0,0.6625]
[1734140759697,7.143e-05,102010.0,102000.0,1.10353342]
[1734140759893,7.143e-05,102010.0,102000.0,0.711013]
[1734140760395,7.143e-05,102010.0,102000.0,1.10303342]
[1734140760805,7.143e-05,102010.0,102000.0,1.011013]
[1734140761602,0.04907943,102010.0,102000.0,0.662]
[1734140762105,0.048995,102040.0,102020.0,0.049002]
[1734140762311,0.048995,102040.0,102030.0,0.250198]
[1734140762505,0.00147083,102050.0,102040.0,0.048994]
[1734140762702,0.00147083,102050.0,102040.0,0.409794]
[1734140762703,0.05045983,102050.0,102040.0,0.409794]
[1734140763102,0.05051294,102050.0,102040.0,0.409794]
[1734140763700,0.05051294,102050.0,102040.0,0.3608]
[1734140763902,0.14253336,102050.0,102040.0,0.3608]
[1734140764402,0.05051294,102050.0,102040.0,0.409794]
[1734140764807,0.00152394,102050.0,102040.0,0.50181442]
[1734140765006,0.36216,102060.0,102040.0,0.409794]
[1734140765206,0.36216,102060.0,102050.0,0.3608]
[1734140765505,0.14100242,102070.0,102050.0,0.3608]
[1734140767003,0.048984,102060.0,102050.0,0.3608]
[1734140767207,0.048989,102050.0,102040.0,0.3608]
[1734140767401,0.14100942,102050.0,102040.0,0.3608]
[1734140768002,0.048989,102050.0,102040.0,0.3608]
[1734140768208,0.048989,102050.0,102040.0,0.5619]
[1734140769300,0.409785,102060.0,102040.0,0.70291342]
[1734140769607,0.409785,102060.0,102040.0,0.610893]
[1734140770112,0.048985,102060.0,102040.0,0.610893]
[1734140773507,0.048985,102060.0,102050.0,0.3608]
[1734140773912,0.04898,102070.0,102050.0,0.50180942]
[1734140774217,0.14099942,102070.0,102060.0,0.3608]
[1734140774719,0.14099942,102070.0,102050.0,0.597288]
[1734140776417,0.048989,102050.0,102040.0,0.61096193]
[1734140776608,0.048989,102050.0,102040.0,0.56196993]
[1734140777117,0.14100942,102050.0,102040.0,0.56196993]
[1734140777321,0.50180942,102050.0,102040.0,0.20116993]
[1734140777520,0.50180942,102050.0,102040.0,6.993e-05]
[1734140777723,0.86384942,102050.0,102040.0,6.993e-05]
[1734140780211,0.771829,102050.0,102040.0,0.04906393]
[1734140780927,0.86384942,102050.0,102040.0,0.04906393]
[1734140781114,0.86384942,102050.0,102040.0,6.993e-05]
[1734140784428,0.95177386,102050.0,102040.0,6.993e-05]
[1734140785326,0.86384942,102050.0,102040.0,6.993e-05]
[1734140785716,0.049003,102020.0,102010.0,0.28905319]
[1734140785920,0.50182342,102020.0,102010.0,0.28905319]
[1734140786117,0.50182342,102020.0,102000.0,0.1]
[1734140786330,0.14964578,102010.0,102000.0,0.1]
[1734140786521,0.14102842,102010.0,102000.0,0.1]
[1734140786722,0.14109835,102010.0,102000.0,0.1]
[1734140786924,0.14109835,102010.0,102000.0,0.1197865]
[1734140787619,0.14109835,102010.0,102000.0,0.1]
[1734140788732,0.50189835,102010.0,102000.0,0.1]
[1734140788933,0.69099835,102010.0,102000.0,0.1]
[1734140790228,1.05311835,102010.0,102000.0,0.1]
[1734140791422,1.14085283,102010.0,102000.0,0.1]
[1734140791729,0.049013,102000.0,101990.0,0.0005]
[1734140791927,0.56558372,102010.0,102000.0,0.049013]
[1734140792228,0.08780441,102010.0,102000.0,0.598413]
[1734140792418,0.13681241,102010.0,102000.0,0.59455965]
[1734140792726,0.04907793,102010.0,102000.0,0.59455965]
[1734140793134,6.993e-05,102010.0,102000.0,0.59455965]
[1734140798031,0.048995,102040.0,102020.0,0.049001]
[1734140798232,0.048995,102040.0,102030.0,0.5546]
[1734140798423,0.05046173,102050.0,102030.0,0.69561842]
[1734140798625,0.00147073,102050.0,102040.0,0.50181442]
[1734140798828,0.00147073,102050.0,102040.0,0.409794]
[1734140800333,0.00147073,102050.0,102040.0,0.50181442]
[1734140800736,0.00147073,102050.0,102040.0,0.73434468]
[1734140801237,0.00147073,102050.0,102040.0,0.92694468]
[1734140803830,0.00147073,102050.0,102040.0,0.93580579]
[1734140812036,0.00147073,102050.0,102040.0,0.9551948]
[1734140812737,0.41164,102070.0,102050.0,0.048988]
[1734140813037,0.41114,102070.0,102060.0,0.3608]
[1734140814039,0.41164,102070.0,102060.0,0.3608]
[1734140815038,0.41114,102070.0,102060.0,0.3608]
[1734140815741,0.81498042,102070.0,102040.0,0.53006354]
[1734140815934,0.048985,102060.0,102050.0,0.3608]
[1734140816140,0.233585,102060.0,102050.0,0.3608]
[1734140816341,0.048993,102050.0,102030.0,0.603597]
[1734140816551,0.048995,102040.0,102020.0,0.50182142]
[1734140816738,0.048995,102040.0,102020.0,0.69796807]
[1734140817242,0.81689,102050.0,102030.0,0.14101442]
[1734140817443,0.49925997,102070.0,102050.0,0.048989]
[1734140817444,0.77244,102070.0,102050.0,0.048989]
[1734140817747,0.41164,102070.0,102050.0,0.50180642]
[1734140817943,0.50316042,102070.0,102050.0,0.597286]
[1734140818244,0.86396042,102070.0,102050.0,0.236486]
[1734140818434,0.45282042,102060.0,102040.0,0.048993]
[1734140818634,0.50180842,102060.0,102040.0,0.048993]
[1734140818835,0.3608,102050.0,102040.0,0.048993]
[1734140819034,0.50180842,102060.0,102040.0,0.048993]
[1734140819444,0.14101142,102050.0,102030.0,0.82982726]
[1734140819638,0.71391142,102050.0,102030.0,0.236497]
[1734140819845,0.14101442,102040.0,102030.0,0.236497]
[1734140820044,0.048994,102040.0,102020.0,0.82084438]
[1734140820348,0.048994,102040.0,102020.0,0.63731512]
[1734140820539,0.048994,102040.0,102020.0,0.86984538]
[1734140821147,0.048994,102040.0,102020.0,0.67034538]
[1734140821648,0.14101442,102040.0,102020.0,0.67034538]
[1734140823745,0.048994,102040.0,102020.0,0.67034438]
[1734140824157,0.048994,102040.0,102020.0,0.62134438]
[1734140824449,0.048994,102040.0,102020.0,0.95939957]
[1734140825050,0.14101942,102030.0,102020.0,0.01936747]
[1734140825254,0.23303984,102030.0,102020.0,0.01936747]
[1734140825551,0.049004,102020.0,102010.0,0.3608]
[1734140825753,0.14102442,102020.0,102010.0,0.3608]
[1734140825940,0.049009,102010.0,102000.0,0.553]
[1734140826148,0.14102942,102010.0,102000.0,0.553]
[1734140826943,0.14102942,102010.0,102000.0,0.0005]
[1734140829053,0.19004242,102010.0,101990.0,0.67113519]
[1734140829254,0.09202042,102000.0,101990.0,0.67113519]
[1734140829557,0.09202042,102000.0,101990.0,0.43821953]
[1734140830053,0.09202042,102000.0,101990.0,0.43871953]
[1734140831051,0.09202042,102000.0,101990.0,0.43821953]
[1734140832155,0.09202042,102000.0,101990.0,0.43871953]
[1734140832559,0.09202042,102000.0,101990.0,0.38970353]
[1734140832756,0.14103442,102000.0,101990.0,0.38970353]
[1734140833158,0.14103442,102000.0,101990.0,0.38920353]
[1734140834157,0.14103442,102000.0,101990.0,0.38970353]
[1734140834359,0.81197083,102030.0,101990.0,0.78172395]
[1734140834556,0.86537228,102030.0,102010.0,0.049008]
[1734140834754,0.00147086,102030.0,102020.0,0.3608]
[1734140834954,0.14101542,102040.0,102020.0,0.604904]
[1734140835154,0.25799073,102050.0,102030.0,0.3608]
[1734140835359,0.25799073,102050.0,102030.0,0.409797]
[1734140835360,0.14101142,102050.0,102030.0,0.409797]
[1734140835658,0.14101142,102050.0,102040.0,0.3608]
[1734140836855,0.14101142,102050.0,102040.0,0.36074827]
[1734140837054,0.14101142,102050.0,102030.0,0.599497]
[1734140837354,0.14101142,102050.0,102030.0,0.784697]
[1734140837557,0.14101142,102050.0,102040.0,0.3608]
[1734140837961,0.14101142,102050.0,102030.0,0.784697]
[1734140838155,0.09202042,102040.0,102030.0,1.01761266]
[1734140838363,0.09202042,102040.0,102030.0,0.784697]
[1734140838754,0.14101442,102040.0,102030.0,0.3608]
[1734140838953,0.14101442,102040.0,102020.0,0.83781766]
[1734140839161,0.14101442,102040.0,102030.0,0.3608]
[1734140839554,0.09202042,102050.0,102030.0,0.3608]
[1734140839864,0.45418042,102060.0,102040.0,0.3608]
[1734140840063,0.14100642,102060.0,102040.0,0.409794]
[1734140840364,0.14100642,102060.0,102050.0,0.1976]
[1734140840661,0.14297285,102070.0,102050.0,0.5584]
[1734140840863,0.23302584,102060.0,102050.0,0.5584]
[1734140841157,0.14100542,102060.0,102050.0,0.1976]
[1734140841758,0.048985,102060.0,102050.0,0.1976]
[1734140842066,0.14100542,102060.0,102050.0,0.1976]
[1734140842859,0.048985,102060.0,102050.0,0.1976]
[1734140843062,0.23009182,102070.0,102050.0,0.60739]
[1734140843274,0.23009182,102070.0,102060.0,0.3608]
[1734140843275,0.14247185,102070.0,102060.0,0.3608]
[1734140843962,0.14247185,102070.0,102050.0,0.84030566]
[1734140844169,0.14247185,102070.0,102050.0,0.60739]
[1734140844562,0.14100542,102060.0,102050.0,0.79131566]
[1734140844965,0.14100542,102060.0,102050.0,0.5584]
[1734140845358,0.50180542,102060.0,102050.0,0.1976]
[1734140846770,0.14100542,102060.0,102050.0,0.1976]
[1734140846971,0.41175243,102070.0,102050.0,0.69940842]
[1734140847180,0.55225685,102070.0,102050.0,0.607388]
[1734140847367,0.14247285,102070.0,102050.0,0.607388]
[1734140848663,0.14100542,102060.0,102050.0,0.1976]
[1734140848861,0.04899,102050.0,102040.0,0.23291566]
[1734140849069,0.14101042,102050.0,102030.0,1.18997018]
[1734140849671,0.14101042,102050.0,102030.0,0.95705452]
[1734140850066,0.04899,102050.0,102030.0,1.00605352]
[1734140850269,0.04899,102050.0,102030.0,1.09807394]
[1734140850464,0.04899,102050.0,102030.0,1.3309896]
[1734140851468,0.14101042,102050.0,102040.0,0.3608]
[1734140851665,0.14101042,102050.0,102030.0,1.23896918]
[1734140852963,0.19000442,102050.0,102030.0,1.23896918]
[1734140853272,0.14101042,102050.0,102030.0,1.23896918]
[1734140853475,0.048995,102040.0,102030.0,1.23896918]
[1734140854571,0.048995,102040.0,102030.0,0.99021566]
[1734140854769,0.048995,102040.0,102030.0,0.7573]
[1734140856170,0.048991,102050.0,102030.0,0.806299]
[1734140856375,0.048991,102050.0,102040.0,0.3608]
[1734140856761,0.048991,102050.0,102030.0,1.03921466]
[1734140856967,0.14101142,102050.0,102030.0,1.03921466]
[1734140858378,0.048991,102050.0,102030.0,1.03921466]
[1734140859163,0.048991,102050.0,102040.0,0.3608]
[1734140859369,0.048991,102050.0,102040.0,0.59371566]
[1734140861075,0.409788,102060.0,102040.0,0.64270966]
[1734140861377,0.50180842,102060.0,102040.0,0.93387344]
[1734140861577,0.50180842,102060.0,102040.0,1.12037344]
[1734140861779,0.50180842,102060.0,102050.0,0.23291566]
[1734140863775,0.409788,102060.0,102050.0,0.23291566]
[1734140863979,0.048988,102060.0,102050.0,0.52407944]
[1734140864173,0.048988,102060.0,102050.0,0.29116378]
[1734140864680,0.048988,102060.0,102050.0,0.63742137]
[1734140866582,0.048988,102060.0,102050.0,0.99822137]
[1734140866975,0.048988,102060.0,102050.0,0.63742137]
[1734140866976,0.14100842,102060.0,102050.0,0.63742137]
[1734140867171,0.50180842,102060.0,102050.0,0.52526307]
[1734140867376,0.58942839,102060.0,102050.0,0.52526307]
[1734140867982,0.68144881,102060.0,102050.0,0.23409929]
[1734140868181,0.59382884,102060.0,102050.0,0.23409929]
[1734140868387,0.85579793,102060.0,102040.0,0.52526307]
[1734140868686,0.70171042,102050.0,102040.0,0.52526307]
[1734140869082,0.25396684,102050.0,102040.0,0.28309429]
[1734140869271,0.61476284,102060.0,102040.0,0.3608]
[1734140869477,0.61476284,102060.0,102050.0,0.28297036]
[1734140869680,0.13698353,102060.0,102050.0,0.57413414]
[1734140869878,0.048986,102060.0,102050.0,0.34015378]
[1734140870080,0.14100642,102060.0,102050.0,0.34015378]
[1734140870380,0.22900395,102060.0,102050.0,0.34015378]
[1734140870581,0.22900395,102060.0,102050.0,0.29116378]
[1734140871179,0.14100642,102060.0,102050.0,0.29116378]
[1734140871874,0.22900395,102060.0,102050.0,0.29116378]
[1734140872079,0.13698353,102060.0,102050.0,0.70095378]
[1734140872274,0.048986,102060.0,102050.0,0.70095378]
[1734140872489,0.048986,102060.0,102050.0,1.04721137]
[1734140872789,0.048986,102060.0,102050.0,0.99822137]
[1734140873174,0.048986,102060.0,102050.0,1.19622137]
[1734140875083,0.14100642,102060.0,102050.0,0.63742137]
[1734140875289,0.58980395,102060.0,102050.0,0.52496178]
[1734140875688,0.70678326,102060.0,102050.0,0.52496178]
[1734140877283,1.01080615,102060.0,102050.0,0.233798]
[1734140877491,0.61878573,102060.0,102050.0,0.233798]
[1734140877685,0.04899,102050.0,102040.0,0.93475578]
[1734140877887,0.22905127,102050.0,102040.0,0.70095778]
[1734140879281,0.13703085,102050.0,102040.0,0.70095778]
[1734140879579,0.62813183,102060.0,102050.0,0.04899]
[1734140879580,0.13702685,102060.0,102050.0,0.04899]
[1734140879783,0.13702685,102060.0,102050.0,0.88723431]
[1734140879984,0.048986,102060.0,102050.0,0.88723431]
[1734140880184,0.048986,102060.0,102050.0,1.07703431]